fUST/lending_fUST_20250716
["ID","MTS","AMOUNT","RATE_DAILY","PERIOD"]
[372337169,1752599294378,-460.0,0.00019178,2]
[372337170,1752599294408,-460.0,0.00019178,2]
[372337171,1752599294439,-460.0,0.00019178,2]
[372337172,1752599294470,-460.0,0.00019178,2]
[372337173,1752599294501,-460.0,0.00019178,2]
[372337174,1752599294531,-460.0,0.00019178,2]
[372337175,1752599294560,-460.0,0.00019178,2]
[372337176,1752599294589,-460.0,0.00019178,2]
[372337177,1752599294619,-460.0,0.00019178,2]
[372337178,1752599294649,-460.0,0.00019178,2]
[372337179,1752599294679,-460.0,0.00019178,2]
[372337180,1752599294717,-460.0,0.00019178,2]
[372337181,1752599294755,-265.19614906,0.00019178,2]
[372337182,1752599294788,-460.0,0.00019178,2]
[372337183,1752599294931,-462.59877099,0.00019178,2]
[372337184,1752599294944,-64.75552562,0.00019178,2]
[372337185,1752599294954,-395.24447438,0.00019178,2]
[372337186,1752599294965,-64.75552562,0.00019178,2]
[372337187,1752599294974,-395.24447438,0.00019178,2]
[372337188,1752599294986,-64.75552562,0.00019178,2]
[372337189,1752599294996,-395.24447438,0.00019178,2]
[372337190,1752599295008,-64.75552562,0.00019178,2]
[372337191,1752599295017,-395.24447438,0.00019178,2]
[372337192,1752599295028,-64.75552562,0.00019178,2]
[372337193,1752599295038,-395.24447438,0.00019178,2]
[372337194,1752599295049,-64.75552562,0.00019178,2]
[372337195,1752599295059,-260.16608642,0.00019178,2]
[372337196,1752599295068,-135.07838796,0.00019178,2]
[372337197,1752599295079,-324.92161204,0.00019178,2]
[372337198,1752599295088,-135.07838796,0.00019178,2]
[372337199,1752599295100,-324.92161204,0.00019178,2]
[372337200,1752599295109,-137.80156972,0.00019178,2]
[372337201,1752599295121,-282.83668156,0.00019178,2]
[372337202,1752599295132,-39.36174872,0.00019178,2]
[372337203,1752599295142,-420.63825128,0.00019178,2]
[372337204,1752599295153,-39.36174872,0.00019178,2]
[372337205,1752599295164,-420.63825128,0.00019178,2]
[372337206,1752599295176,-164.23174872,0.00019178,2]
[372337207,1752599295186,-295.76825128,0.00019178,2]
[372337208,1752599295197,-164.23174872,0.00019178,2]
[372337209,1752599295207,-151.0,0.00019178,2]
[372337210,1752599295217,-144.76825128,0.00019178,2]
[372337211,1752599295229,-315.23174872,0.00019178,2]
[372337212,1752599295239,-144.76825128,0.00019178,2]
[372337213,1752599295272,-6.23174872,0.00019178,2]
[372337214,1752599295302,-151.0,0.00019178,2]
[372337215,1752599295336,-151.0,0.00019178,2]
[372337216,1752599295368,-151.74993914,0.00019178,2]
[372337217,1752599295398,-151.09951688,0.00019178,2]
[372337218,1752599295429,-460.0,0.00019178,2]
[372337219,1752599295462,-460.0,0.00019178,2]
[372337220,1752599295492,-460.0,0.00019178,2]
[372337221,1752599295521,-151.0,0.00019178,2]
[372337222,1752599295551,-151.0,0.00019178,2]
[372337223,1752599295581,-460.0,0.00019178,2]
[372337224,1752599295611,-460.0,0.00019178,2]
[372337225,1752599295641,-460.0,0.00019178,2]
[372337226,1752599295672,-460.0,0.00019178,2]
[372337227,1752599295703,-460.0,0.00019178,2]
[372337228,1752599295733,-460.0,0.00019178,2]
[372337229,1752599295764,-460.0,0.00019178,2]
[372337230,1752599295794,-460.0,0.00019178,2]
[372337231,1752599295826,-460.0,0.00019178,2]
[372337232,1752599295856,-326.73,0.00019178,2]
[372337233,1752599295884,-460.0,0.00019178,2]
[372337234,1752599295913,-460.0,0.00019178,2]
[372337235,1752599295944,-460.0,0.00019178,2]
[372337236,1752599295974,-878.21,0.00019178,2]
[372337237,1752599296003,-460.0,0.00019178,2]
[372337238,1752599296031,-460.0,0.00019178,2]
[372337239,1752599296051,-460.0,0.00019178,2]
[372337240,1752599296067,-460.0,0.00019178,2]
[372337241,1752599296078,-460.0,0.00019178,2]
[372337242,1752599296090,-175.26911241,0.00019178,2]
[372337243,1752599296101,-284.73088759,0.00019178,2]
[372337244,1752599296110,-175.26911241,0.00019178,2]
[372337245,1752599296121,-284.73088759,0.00019178,2]
[372337246,1752599296130,-175.26911241,0.00019178,2]
[372337247,1752599296150,-284.73088759,0.00019178,2]
[372337248,1752599296159,-175.26911241,0.00019178,2]
[372337249,1752599296172,-324.73088759,0.00019178,2]
[372337250,1752599296181,-135.26911241,0.00019178,2]
[372337251,1752599296193,-37.79443359,0.00019178,2]
[372337252,1752599296202,-151.0,0.00019205,2]
[372337253,1752599296212,-198.0,0.00019233,2]
[372337254,1752599296221,-73.20556641,0.00019329,2]
[372337255,1752599296232,-460.0,0.00019329,2]
[372337256,1752599296247,-460.0,0.00019329,2]
[372337257,1752599296258,-460.0,0.00019329,2]
[372337258,1752599296272,-460.0,0.00019329,2]
[372337259,1752599296283,-460.0,0.00019329,2]
[372337260,1752599296315,-1068.99223396,0.00019329,2]
[372337261,1752599296328,-461.50586275,0.00019329,2]
[372337262,1752599296339,-460.0,0.00019329,2]
[372337263,1752599296351,-460.0,0.00019329,2]
[372337264,1752599296375,-326.45004968,0.00019329,2]
[372337265,1752599296396,-266.74029353,0.00019329,2]
[372337266,1752599296412,-460.0,0.00019329,2]
[372337267,1752599296552,-460.0,0.00019329,2]
[372337268,1752599296567,-460.0,0.00019329,2]
[372337269,1752599296578,-460.0,0.00019329,2]
[372337270,1752599296589,-460.0,0.00019329,2]
[372337271,1752599296601,-460.0,0.00019329,2]
[372337272,1752599296620,-460.0,0.00019329,2]
[372337273,1752599296631,-460.0,0.00019329,2]
[372337274,1752599296643,-460.0,0.00019329,2]
[372337275,1752599296655,-460.0,0.00019329,2]
[372337276,1752599296673,-460.0,0.00019329,2]
[372337277,1752599296685,-460.0,0.00019329,2]
[372337278,1752599296697,-460.0,0.00019329,2]
[372337279,1752599296709,-460.36871305,0.00019329,2]
[372337280,1752599296724,-460.0,0.00019329,2]
[372337281,1752599296735,-460.0,0.00019329,2]
[372337282,1752599296761,-460.0,0.00019329,2]
[372337283,1752599296774,-460.0,0.00019329,2]
[372337284,1752599296788,-460.0,0.00019329,2]
[372337285,1752599296800,-460.0,0.00019329,2]
[372337286,1752599296823,-460.79701118,0.00019329,2]
[372337287,1752599296836,-144.18796448,0.00019329,2]
[372337288,1752599296852,-460.0,0.00019329,2]
[372337289,1752599296864,-460.54,0.00019329,2]
[372337290,1752599296882,-872.92,0.00019329,2]
[372337291,1752599296894,-460.0,0.00019329,2]
[372337292,1752599296906,-460.0,0.00019329,2]
[372337293,1752599296919,-505.51615453,0.00019329,2]
[372337294,1752599296932,-460.0,0.00019329,2]
[372337295,1752599296944,-460.0,0.00019329,2]
[372337296,1752599296957,-460.0,0.00019329,2]
[372337297,1752599296969,-460.0,0.00019329,2]
[372337298,1752599296981,-460.0,0.00019329,2]
[372337299,1752599296993,-460.0,0.00019329,2]
[372337300,1752599297005,-102.98948288,0.00019329,2]
[372337301,1752599297016,-195.96598436,0.00019394,2]
[372337302,1752599297026,-161.04453276,0.000194,2]
[372337303,1752599297040,-460.0,0.000194,2]
[372337304,1752599297054,-460.0,0.000194,2]
[372337305,1752599297066,-460.0,0.000194,2]
[372337306,1752599297078,-430.35884424,0.000194,2]
[372337307,1752599297088,-29.64115576,0.00019451,2]
[372337308,1752599297100,-460.0,0.00019451,2]
[372337309,1752599297113,-383.27884424,0.00019451,2]
[372337310,1752599297123,-76.72115576,0.00019451,2]
[372337311,1752599297135,-265.19614906,0.00019451,2]
[372337312,1752599297148,-460.0,0.00019451,2]
[372337313,1752599297159,-71.00269518,0.00019451,2]
[372337314,1752599297171,-80.65269764,0.00019451,2]
[372337315,1752599297191,-6.23174872,0.00019451,2]
[372337316,1752599297203,-151.0,0.00019451,2]
[372337317,1752599297223,-151.0,0.00019451,2]
[372337318,1752599297235,-151.74993914,0.00019451,2]
[372337319,1752599297256,-151.09951688,0.00019451,2]
[372337320,1752599297273,-181.18609762,0.00019451,2]
[372337321,1752599297284,-278.81390238,0.00019452,2]
[372337322,1752599297296,-181.18609762,0.00019452,2]
[372337323,1752599297307,-278.81390238,0.00019452,2]
[372337324,1752599297324,-181.18609762,0.00019452,2]
[372337325,1752599297334,-278.81390238,0.00019452,2]
[372337326,1752599297347,-151.0,0.00019452,2]
[372337327,1752599297372,-30.18609762,0.00019452,2]
[372337328,1752599297382,-120.81390238,0.00019452,2]
[372337329,1752599297394,-339.18609762,0.00019452,2]
[372337330,1752599297406,-120.81390238,0.00019452,2]
[372337331,1752599297423,-339.18609762,0.00019452,2]
[372337332,1752599297434,-120.81390238,0.00019452,2]
[372337333,1752599297447,-339.18609762,0.00019452,2]
[372337334,1752599297456,-120.81390238,0.00019452,2]
[372337335,1752599297469,-339.18609762,0.00019452,2]
[372337336,1752599297479,-120.81390238,0.00019452,2]
[372337337,1752599297491,-339.18609762,0.00019452,2]
[372337338,1752599297501,-120.81390238,0.00019452,2]
[372337339,1752599297513,-339.18609762,0.00019452,2]
[372337340,1752599297523,-120.81390238,0.00019452,2]
[372337341,1752599297535,-37.47254033,0.00019452,2]
[372337342,1752599297545,-422.52745967,0.00019452,2]
[372337343,1752599297557,-38.4943066,0.00019452,2]
[372337344,1752599297567,-421.5056934,0.00019452,2]
[372337345,1752599297579,-38.4943066,0.00019452,2]
[372337346,1752599297588,-421.5056934,0.00019452,2]
[372337347,1752599297600,-38.4943066,0.00019452,2]
[372337348,1752599297609,-288.2356934,0.00019452,2]
[372337349,1752599297621,-171.7643066,0.00019452,2]
[372337350,1752599297631,-288.2356934,0.00019452,2]
[372337351,1752599297643,-171.7643066,0.00019452,2]
[372337352,1752599297653,-288.2356934,0.00019452,2]
[372337353,1752599297665,-171.7643066,0.00019452,2]
[372337354,1752599297677,-288.2356934,0.00019452,2]
[372337355,1752599297688,-171.7643066,0.00019452,2]
[372337356,1752599297698,-460.0,0.00019452,2]
[372337357,1752599297707,-246.4456934,0.00019452,2]
[372337358,1752599297720,-214.96158409,0.00019452,2]
[372337359,1752599297730,-245.03841591,0.00019452,2]
[372337360,1752599297742,-219.39190338,0.00019452,2]
[372337361,1752599297751,-240.60809662,0.00019452,2]
[372337362,1752599297762,-123.95759052,0.00019452,2]
[372337363,1752599297782,-95.43431286,0.00019452,2]
[372337364,1752599297792,-460.0,0.00019452,2]
[372337365,1752599297801,-460.0,0.00019452,2]
[372337366,1752599297809,-460.0,0.00019452,2]
[372337367,1752599297818,-460.0,0.00019452,2]
[372337368,1752599297826,-460.0,0.00019452,2]
[372337369,1752599297834,-460.0,0.00019452,2]
[372337370,1752599297847,-460.0,0.00019452,2]
[372337371,1752599297860,-460.0,0.00019452,2]
[372337372,1752599297870,-460.0,0.00019452,2]
[372337373,1752599297879,-460.0,0.00019452,2]
[372337374,1752599297889,-460.0,0.00019452,2]
[372337375,1752599297901,-460.0,0.00019452,2]
[372337376,1752599297911,-460.0,0.00019452,2]
[372337377,1752599297921,-460.0,0.00019452,2]
[372337378,1752599297931,-460.0,0.00019452,2]
[372337379,1752599297941,-460.0,0.00019452,2]
[372337380,1752599297952,-460.0,0.00019452,2]
[372337381,1752599297962,-460.0,0.00019452,2]
[372337382,1752599297972,-460.0,0.00019452,2]
[372337383,1752599297982,-460.0,0.00019452,2]
[372337384,1752599297992,-460.0,0.00019452,2]
[372337385,1752599298002,-460.0,0.00019452,2]
[372337386,1752599298011,-239.59739498,0.00019452,2]
[372337387,1752599298020,-460.0,0.00019452,2]
[372337388,1752599298031,-460.0,0.00019452,2]
[372337389,1752599298041,-460.0,0.00019452,2]
[372337390,1752599298052,-460.0,0.00019452,2]
[372337391,1752599298063,-460.0,0.00019452,2]
[372337392,1752599298074,-460.0,0.00019452,2]
[372337393,1752599298084,-579.7592567,0.00019452,2]
[372337394,1752599298095,-460.0,0.00019452,2]
[372337395,1752599298105,-460.0,0.00019452,2]
[372337396,1752599298116,-460.0,0.00019452,2]
[372337397,1752599298127,-460.0,0.00019452,2]
[372337398,1752599298138,-460.0,0.00019452,2]
[372337399,1752599298148,-460.0,0.00019452,2]
[372337400,1752599298158,-460.0,0.00019452,2]
[372337401,1752599298168,-460.0,0.00019452,2]
[372337402,1752599298178,-151.0,0.00019452,2]
[372337403,1752599298188,-460.0,0.00019452,2]
[372337404,1752599298198,-151.0,0.00019452,2]
[372337405,1752599298208,-151.0,0.00019452,2]
[372337406,1752599298218,-460.0,0.00019452,2]
[372337407,1752599298229,-83.2168015,0.00019452,2]
[372337410,1752599350267,-324.95520458,0.00018868,2]
[372337411,1752599350290,-460.0,0.00019178,2]
[372337412,1752599350312,-460.0,0.00019178,2]
[372337413,1752599350338,-460.0,0.00019178,2]
[372337414,1752599350362,-16.16608324,0.00019178,2]
[372337415,1752599358103,-443.83391676,0.00019178,2]
[372337416,1752599358134,-460.0,0.00019178,2]
[372337417,1752599358161,-460.0,0.00019178,2]
[372337418,1752599358186,-460.0,0.00019178,2]
[372337419,1752599358209,-460.0,0.00019178,2]
[372337420,1752599358233,-478.3282865,0.00019178,2]
[372337421,1752599358257,-460.0,0.00019178,2]
[372337422,1752599358279,-460.0,0.00019178,2]
[372337423,1752599358302,-326.86344022,0.00019178,2]
[372337424,1752599364549,-133.13655978,0.00019178,2]
[372337425,1752599364594,-460.0,0.00019178,2]
[372337426,1752599364635,-460.0,0.00019178,2]
[372337427,1752599364677,-460.0,0.00019178,2]
[372337428,1752599364718,-451.82,0.00019178,2]
[372337429,1752599364760,-460.0,0.00019178,2]
[372337430,1752599364803,-460.0,0.00019178,2]
[372337431,1752599364839,-151.0,0.00019394,2]
[372337432,1752599364876,-463.01574741,0.00019452,2]
[372337433,1752599364916,-460.0,0.00019452,2]
[372337434,1752599364955,-460.0,0.00019452,2]
[372337435,1752599364995,-472.80279247,0.00019452,2]
[372337436,1752599365038,-460.0,0.00019452,2]
[372337437,1752599365077,-460.0,0.00019452,2]
[372337438,1752599365117,-460.0,0.00019452,2]
[372337439,1752599365158,-460.0,0.00019452,2]
[372337440,1752599365198,-460.0,0.00019452,2]
[372337441,1752599365240,-412.61,0.00019452,2]
[372337442,1752599365282,-460.0,0.00019452,2]
[372337443,1752599365324,-460.0,0.00019452,2]
[372337444,1752599365365,-460.0,0.00019452,2]
[372337445,1752599365407,-460.0,0.00019452,2]
[372337446,1752599365448,-550.63572258,0.00019452,2]
[372337447,1752599365466,-9.95835552,0.00019452,2]
[372337448,1752599365480,-123.17820426,0.00019452,2]
[372337449,1752599365494,-336.82179574,0.00019452,2]
[372337450,1752599365507,-123.17820426,0.00019452,2]
[372337451,1752599365528,-336.82179574,0.00019452,2]
[372337452,1752599365542,-123.17820426,0.00019452,2]
[372337453,1752599365558,-336.82179574,0.00019452,2]
[372337454,1752599365570,-123.17820426,0.00019452,2]
[372337455,1752599365586,-336.82179574,0.00019452,2]
[372337456,1752599365598,-114.99820426,0.00019452,2]
[372337457,1752599365612,-345.00179574,0.00019452,2]
[372337458,1752599365622,-114.99820426,0.00019452,2]
[372337459,1752599365660,-469.87179574,0.00019452,2]
[372337460,1752599365693,-460.0,0.00019452,2]
[372337461,1752599365730,-460.0,0.00019452,2]
[372337462,1752599365970,-460.0,0.00019452,2]
[372337463,1752599366003,-460.0,0.00019452,2]
[372337464,1752599366050,-460.0,0.00019452,2]
[372337465,1752599366089,-298.3,0.00019452,2]
[372337466,1752599366124,-460.0,0.00019452,2]
[372337467,1752599366159,-460.0,0.00019452,2]
[372337468,1752599366196,-460.0,0.00019452,2]
[372337469,1752599366233,-460.0,0.00019452,2]
[372337470,1752599366267,-460.0,0.00019452,2]
[372337471,1752599366305,-460.0,0.00019452,2]
[372337472,1752599366340,-878.21,0.00019452,2]
[372337473,1752599366375,-460.0,0.00019452,2]
[372337474,1752599366415,-232.99633031,0.00019452,2]
[372337475,1752599366456,-492.86586627,0.00019452,2]
[372337476,1752599366501,-460.0,0.00019452,2]
[372337477,1752599366536,-460.0,0.00019452,2]
[372337478,1752599366570,-460.0,0.00019452,2]
[372337479,1752599366604,-481.93,0.00019452,2]
[372337480,1752599366640,-31.65201536,0.00019452,2]
[372337481,1752599366768,-428.34798464,0.00019452,2]
[372337482,1752599366778,-31.65201536,0.00019452,2]
[372337483,1752599366790,-119.34798464,0.00019452,2]
[372337484,1752599366799,-31.65201536,0.00019452,2]
[372337485,1752599366811,-428.34798464,0.00019452,2]
[372337486,1752599366822,-34.66776277,0.00019452,2]
[372337487,1752599366838,-460.0,0.00019178,2]
[372337488,1752599366849,-425.33223723,0.00019452,2]
[372337489,1752599366859,-34.66776277,0.00019452,2]
[372337490,1752599366873,-425.33223723,0.00019452,2]
[372337491,1752599366883,-47.47055524,0.00019452,2]
[372337492,1752599366897,-412.52944476,0.00019452,2]
[372337493,1752599366906,-47.47055524,0.00019452,2]
[372337494,1752599366917,-227.53944476,0.00019452,2]
[372337495,1752599366927,-232.46055524,0.00019452,2]
[372337496,1752599366939,-227.53944476,0.00019452,2]
[372337497,1752599366949,-151.0,0.00019452,2]
[372337498,1752599366958,-81.46055524,0.00019452,2]
[372337499,1752599366973,-378.53944476,0.00019452,2]
[372337500,1752599366983,-81.46055524,0.00019452,2]
[372337501,1752599366994,-378.53944476,0.00019452,2]
[372337502,1752599367004,-81.46055524,0.00019452,2]
[372337503,1752599367039,-378.53944476,0.00019452,2]
[372337504,1752599367068,-387.09890364,0.00019452,2]
[372337505,1752599367097,-460.0,0.00019452,2]
[372337506,1752599367130,-460.0,0.00019452,2]
[372337507,1752599367162,-460.0,0.00019452,2]
[372337508,1752599367192,-500.0,0.00019452,2]
[372337509,1752599367222,-767.21954647,0.00019675,2]
[372337510,1752599367255,-177.37491708,0.00019725,2]
[372337511,1752599367286,-173.88804884,0.00019725,2]
[372337512,1752599367316,-460.0,0.00019726,2]
[372337513,1752599367345,-460.0,0.00019726,2]
[372337514,1752599367375,-460.0,0.00019726,2]
[372337515,1752599367408,-460.0,0.00019726,2]
[372337516,1752599367438,-460.0,0.00019726,2]
[372337517,1752599367472,-460.0,0.00019726,2]
[372337518,1752599367503,-599.44235497,0.00019726,2]
[372337519,1752599367534,-460.0,0.00019726,2]
[372337520,1752599367563,-460.0,0.00019726,2]
[372337521,1752599367593,-460.0,0.00019726,2]
[372337522,1752599367623,-463.75536914,0.00019726,2]
[372337523,1752599367653,-460.0,0.00019726,2]
[372337524,1752599367684,-460.0,0.00019726,2]
[372337525,1752599367705,-412.61,0.00019726,2]
[372337526,1752599367726,-50.66328941,0.00019726,2]
[372337527,1752599367735,-409.33671059,0.00019726,2]
[372337528,1752599367747,-50.66328941,0.00019726,2]
[372337529,1752599367756,-409.33671059,0.00019726,2]
[372337530,1752599367768,-50.66328941,0.00019726,2]
[372337531,1752599367778,-409.33671059,0.00019726,2]
[372337532,1752599367790,-50.66328941,0.00019726,2]
[372337533,1752599367801,-409.33671059,0.00019726,2]
[372337534,1752599367813,-50.66328941,0.00019726,2]
[372337535,1752599367822,-460.0,0.00019726,2]
[372337536,1752599367831,-49.93078869,0.00019726,2]
[372337537,1752599367843,-410.06921131,0.00019726,2]
[372337538,1752599367852,-59.80258443,0.00019726,2]
[372337539,1752599367863,-403.43920974,0.00019726,2]
[372337540,1752599367873,-56.56079026,0.00019726,2]
[372337541,1752599367884,-403.43920974,0.00019726,2]
[372337542,1752599367894,-56.56079026,0.00019726,2]
[372337543,1752599367928,-403.43920974,0.00019726,2]
[372337544,1752599367959,-460.0,0.00019726,2]
[372337545,1752599367991,-460.0,0.00019726,2]
[372337546,1752599368023,-505.53,0.00019726,2]
[372337547,1752599368053,-555.47,0.00019726,2]
[372337548,1752599368083,-460.0,0.00019726,2]
[372337549,1752599368122,-485.1,0.00019726,2]
[372337550,1752599368161,-460.0,0.00019726,2]
[372337551,1752599368193,-460.0,0.00019726,2]
[372337552,1752599368226,-486.09,0.00019726,2]
[372337553,1752599368259,-460.0,0.00019726,2]
[372337554,1752599368291,-460.0,0.00019726,2]
[372337555,1752599368323,-460.0,0.00019726,2]
[372337556,1752599368358,-460.0,0.00019726,2]
[372337557,1752599368392,-460.0,0.00019726,2]
[372337558,1752599368423,-460.0,0.00019726,2]
[372337559,1752599368455,-151.0,0.00019726,2]
[372337560,1752599368489,-460.0,0.00019726,2]
[372337561,1752599368527,-584.87,0.00019726,2]
[372337562,1752599368562,-460.0,0.00019726,2]
[372337563,1752599368594,-460.0,0.00019726,2]
[372337564,1752599368624,-317.00158052,0.00019726,2]
[372337565,1752599368638,-142.99841948,0.00019726,2]
[372337566,1752599368648,-317.00158052,0.00019726,2]
[372337567,1752599368662,-142.99841948,0.00019726,2]
[372337568,1752599368672,-317.00158052,0.00019726,2]
[372337569,1752599368685,-224.64646146,0.00019726,2]
[372337570,1752599368697,-151.0,0.00019726,2]
[372337571,1752599368708,-84.35353854,0.00019726,2]
[372337572,1752599368748,-66.64646146,0.00019726,2]
[372337573,1752599368940,-878.21,0.00019726,2]
[372337574,1752599368974,-460.0,0.00019726,2]
[372337575,1752599369004,-460.0,0.00019726,2]
[372337576,1752599369036,-460.0,0.00019726,2]
[372337577,1752599369065,-460.0,0.00019726,2]
[372337578,1752599369096,-460.0,0.00019726,2]
[372337579,1752599369125,-368.42,0.00019726,2]
[372337580,1752599369154,-151.0,0.00019726,2]
[372337581,1752599369184,-460.0,0.00019726,2]
[372337582,1752599369215,-151.0,0.00019726,2]
[372337583,1752599369247,-588.66,0.00019726,2]
[372337584,1752599369277,-460.0,0.00019726,2]
[372337585,1752599369305,-427.97418958,0.00019896,2]
[372337586,1752599369335,-1000.0,0.000199,2]
[372337587,1752599369365,-500.0,0.00019973,2]
[372337588,1752599369397,-500.0,0.00019973,2]
[372337589,1752599369429,-576.47347333,0.00019973,2]
[372337590,1752599369459,-370.80328516,0.00019973,2]
[372337591,1752599369491,-500.0,0.00019973,2]
[372337592,1752599369520,-500.0,0.00019973,2]
[372337593,1752599369540,-298.3,0.00019973,2]
[372337594,1752599369551,-202.02606997,0.00019973,2]
[372337595,1752599369561,-257.97393003,0.00019973,2]
[372337596,1752599369573,-242.02606997,0.00019973,2]
[372337597,1752599369582,-217.97393003,0.00019973,2]
[372337598,1752599369594,-282.02606997,0.00019973,2]
[372337599,1752599369603,-177.97393003,0.00019973,2]
[372337600,1752599369615,-323.59670561,0.00019973,2]
[372337601,1752599369624,-136.40329439,0.00019973,2]
[372337602,1752599369635,-363.59670561,0.00019973,2]
[372337603,1752599369645,-96.40329439,0.00019973,2]
[372337604,1752599369656,-71.43755962,0.00019973,2]
[372337605,1752599369665,-388.56244038,0.00019973,2]
[372337606,1752599369677,-192.53774856,0.00019973,2]
[372337607,1752599369687,-500.0,0.00019973,2]
[372337608,1752599369696,-185.67225144,0.00019973,2]
[372337609,1752599369729,-315.83804011,0.00019973,2]
[372337610,1752599369758,-643.78665454,0.00019973,2]
[372337611,1752599369788,-500.0,0.00019973,2]
[372337612,1752599369818,-618.2699894,0.00019973,2]
[372337613,1752599369849,-500.0,0.00019973,2]
[372337614,1752599369878,-500.0,0.00019973,2]
[372337615,1752599369907,-500.0,0.00019973,2]
[372337616,1752599369937,-501.03534537,0.00019973,2]
[372337617,1752599369967,-610.39,0.00019978,3]
[372337618,1752599369999,-203.45,0.0001998,3]
[372337619,1752599370029,-460.0,0.00019987,2]
[372337620,1752599370059,-460.0,0.00019987,2]
[372337621,1752599370088,-484.58287118,0.00019987,2]
[372337622,1752599370117,-460.0,0.00019987,2]
[372337623,1752599370147,-460.0,0.00019987,2]
[372337624,1752599370176,-460.0,0.00019987,2]
[372337625,1752599370204,-460.0,0.00019987,2]
[372337626,1752599370234,-166.912252,0.00019987,2]
[372337627,1752599370263,-460.0,0.00019987,2]
[372337628,1752599370294,-872.92,0.00019989,2]
[372337629,1752599370323,-155.0,0.00019993,2]
[372337630,1752599370343,-460.0,0.00019993,2]
[372337631,1752599370354,-232.99633031,0.00019993,2]
[372337632,1752599370366,-179.92366969,0.00019993,2]
[372337633,1752599370375,-312.94219658,0.00019993,2]
[372337634,1752599370390,-460.0,0.00019993,2]
[372337635,1752599370401,-99.97780342,0.00019993,2]
[372337636,1752599370411,-360.02219658,0.00019994,2]
[372337637,1752599370422,-159.64875189,0.00019994,2]
[372337638,1752599370432,-300.35124811,0.00019994,2]
[372337639,1752599370443,-159.64875189,0.00019994,2]
[372337640,1752599370452,-322.28124811,0.00019994,2]
[372337641,1752599370463,-137.71875189,0.00019994,2]
[372337642,1752599370473,-322.28124811,0.00019994,2]
[372337643,1752599370507,-137.71875189,0.00019994,2]
[372337644,1752599370536,-460.0,0.00019994,2]
[372337645,1752599370566,-460.0,0.00019994,2]
[372337646,1752599370597,-329.04361555,0.00019994,2]
[372337647,1752599370626,-460.0,0.00019994,2]
[372337648,1752599370656,-460.0,0.00019994,2]
[372337649,1752599370686,-460.0,0.00019994,2]
[372337650,1752599370716,-460.0,0.00019994,2]
[372337651,1752599370746,-460.0,0.00019994,2]
[372337652,1752599370776,-460.0,0.00019994,2]
[372337653,1752599370805,-317.47791679,0.00019994,2]
[372337654,1752599370835,-361.14600756,0.00019994,2]
[372337655,1752599370865,-460.0,0.00019994,2]
[372337656,1752599370895,-460.0,0.00019994,2]
[372337657,1752599370924,-460.0,0.00019994,2]
[372337658,1752599370955,-460.0,0.00019994,2]
[372337659,1752599370986,-460.0,0.00019994,2]
[372337660,1752599371015,-460.0,0.00019994,2]
[372337661,1752599371044,-460.0,0.00019994,2]
[372337662,1752599371076,-460.0,0.00019994,2]
[372337663,1752599371105,-460.0,0.00019994,2]
[372337664,1752599371133,-460.0,0.00019994,2]
[372337665,1752599371162,-460.0,0.00019994,2]
[372337666,1752599371208,-460.0,0.00019994,2]
[372337667,1752599371239,-460.0,0.00019994,2]
[372337668,1752599371268,-460.0,0.00019994,2]
[372337669,1752599371298,-460.0,0.00019994,2]
[372337670,1752599371327,-460.0,0.00019994,2]